[Event "Titled Tuesday Blitz May 10 Early 2022"]
[White "Khabinets, Ivan"]
[Black "Stribuk, Artiom"]
[WhiteFideId "14115980"]
[BlackFideId "13515659"]
[WhiteElo "2555"]
[BlackElo "2784"]
[Result "0-1"]
[Round "04"]
[TimeControl "180+1"]
[Date "2022.05.11"]
[WhiteClock "0:00:05"]
[BlackClock "0:00:10"]

1. e4 {[%clk 0:03:00]}  c5 {[%clk 0:02:59]} 2. Nf3 {[%clk 0:02:59]}  Nc6 {[%clk 0:02:59]} 3. Bb5 {[%clk 0:02:59]}  e6 {[%clk 0:02:59]} 4. c3 {[%clk 0:02:55]}  Nge7 {[%clk 0:02:51]} 5. O-O {[%clk 0:02:55]}  a6 {[%clk 0:02:50]} 6. Ba4 {[%clk 0:02:54]}  b5 {[%clk 0:02:49]} 7. Bc2 {[%clk 0:02:55]}  Bb7 {[%clk 0:02:49]} 8. d4 {[%clk 0:02:55]}  cxd4 {[%clk 0:02:49]} 9. Nxd4 {[%clk 0:02:56]}  Ng6 {[%clk 0:02:48]} 10. Be3 {[%clk 0:02:55]}  Be7 {[%clk 0:02:42]} 11. f4 {[%clk 0:02:56]}  O-O {[%clk 0:02:42]} 12. Nd2 {[%clk 0:02:56]}  Nxd4 {[%clk 0:02:29]} 13. cxd4 {[%clk 0:02:55]}  f5 {[%clk 0:02:23]} 14. e5 {[%clk 0:02:51]}  Bb4 {[%clk 0:02:13]} 15. Nf3 {[%clk 0:02:47]}  Ne7 {[%clk 0:02:12]} 16. Bd2 {[%clk 0:02:39]}  Bxd2 {[%clk 0:01:46]} 17. Nxd2 {[%clk 0:02:36]}  Kh8 {[%clk 0:01:26]} 18. Nb3 {[%clk 0:02:35]}  Rg8 {[%clk 0:01:24]} 19. Nc5 {[%clk 0:02:34]}  Bc6 {[%clk 0:01:24]} 20. Qh5 {[%clk 0:02:29]}  g6 {[%clk 0:01:17]} 21. Qh6 {[%clk 0:02:25]}  Qf8 {[%clk 0:01:11]} 22. Qh4 {[%clk 0:02:25]}  Qg7 {[%clk 0:01:03]} 23. g3 {[%clk 0:02:10]}  g5 {[%clk 0:01:03]} 24. Qh5 {[%clk 0:02:09]}  Nd5 {[%clk 0:00:54]} 25. fxg5 {[%clk 0:01:32]}  Qxg5 {[%clk 0:00:55]} 26. Qxg5 {[%clk 0:01:31]}  Rxg5 {[%clk 0:00:56]} 27. Nd3 {[%clk 0:01:29]}  Rag8 {[%clk 0:00:51]} 28. Nf4 {[%clk 0:01:28]}  Ne3 {[%clk 0:00:45]} 29. Rf2 {[%clk 0:01:26]}  h5 {[%clk 0:00:34]} 30. Re1 {[%clk 0:00:50]}  Nxc2 {[%clk 0:00:34]} 31. Rxc2 {[%clk 0:00:51]}  Be4 {[%clk 0:00:35]} 32. Rcc1 {[%clk 0:00:45]}  h4 {[%clk 0:00:34]} 33. Kf2 {[%clk 0:00:46]}  R8g7 {[%clk 0:00:18]} 34. Re3 {[%clk 0:00:41]}  Rg4 {[%clk 0:00:17]} 35. Rc8+ {[%clk 0:00:37]}  Kh7 {[%clk 0:00:17]} 36. Rc7 {[%clk 0:00:38]}  Rxf4+ {[%clk 0:00:07]} 37. gxf4 {[%clk 0:00:38]}  Rg2+ {[%clk 0:00:08]} 38. Ke1 {[%clk 0:00:34]}  Rxh2 {[%clk 0:00:09]} 39. Rxd7+ {[%clk 0:00:34]}  Kg6 {[%clk 0:00:10]} 40. d5 {[%clk 0:00:33]}  exd5 {[%clk 0:00:07]} 41. Re2 {[%clk 0:00:26]}  Rh1+ {[%clk 0:00:07]} 42. Kd2 {[%clk 0:00:24]}  Rf1 {[%clk 0:00:06]} 43. e6 {[%clk 0:00:18]}  Kf6 {[%clk 0:00:06]} 44. e7 {[%clk 0:00:17]}  Kf7 {[%clk 0:00:06]} 45. Ke3 {[%clk 0:00:18]}  Rf3+ {[%clk 0:00:06]} 46. Kd4 {[%clk 0:00:18]}  Rxf4 {[%clk 0:00:06]} 47. Ke5 {[%clk 0:00:19]}  Rg4 {[%clk 0:00:07]} 48. Kd6 {[%clk 0:00:19]}  Rg6+ {[%clk 0:00:07]} 49. Kc7 {[%clk 0:00:20]}  Ke8 {[%clk 0:00:06]} 50. Rh2 {[%clk 0:00:19]}  d4 {[%clk 0:00:05]} 51. Rxd4 {[%clk 0:00:19]}  Rc6+ {[%clk 0:00:05]} 52. Kb8 {[%clk 0:00:19]}  Rh6 {[%clk 0:00:04]} 53. Kc8 {[%clk 0:00:12]}  Kxe7 {[%clk 0:00:04]} 54. b3 {[%clk 0:00:08]}  h3 {[%clk 0:00:05]} 55. Rdd2 {[%clk 0:00:08]}  Ke6 {[%clk 0:00:05]} 56. Kc7 {[%clk 0:00:07]}  Ke5 {[%clk 0:00:06]} 57. Rdf2 {[%clk 0:00:06]}  Rc6+ {[%clk 0:00:06]} 58. Kd8 {[%clk 0:00:06]}  Rc3 {[%clk 0:00:06]} 59. Ke7 {[%clk 0:00:05]}  f4 {[%clk 0:00:07]} 60. Kf7 {[%clk 0:00:05]}  Rc7+ {[%clk 0:00:07]} 61. Ke8 {[%clk 0:00:04]}  Rc3 {[%clk 0:00:08]} 62. Ke7 {[%clk 0:00:04]}  Rg3 {[%clk 0:00:08]} 63. Kd7 {[%clk 0:00:04]}  f3 {[%clk 0:00:09]} 64. Kc7 {[%clk 0:00:05]}  Kf4 {[%clk 0:00:09]} 65. Kb6 {[%clk 0:00:05]}  Rg2 {[%clk 0:00:08]} 66. Kxa6 {[%clk 0:00:03]}  Rxh2 {[%clk 0:00:07]} 67. Rxh2 {[%clk 0:00:03]}  Kg3 {[%clk 0:00:08]} 68. Rd2 {[%clk 0:00:03]}  f2 {[%clk 0:00:08]} 69. Rxf2 {[%clk 0:00:03]}  Kxf2 {[%clk 0:00:09]} 70. Kxb5 {[%clk 0:00:04]}  h2 {[%clk 0:00:09]} 71. a4 {[%clk 0:00:05]}  h1=Q {[%clk 0:00:10]} 0-1


[Site "https://www.chess.com"]

[Event "Titled Tuesday Blitz May 10 Early 2022"]
[White "Kohler, Aran"]
[Black "Abrahamyan, Tatev"]
[WhiteFideId "1002856"]
[BlackFideId "13301918"]
[WhiteElo "2313"]
[BlackElo "2352"]
[Result "0-1"]
[Round "04"]
[TimeControl "180+1"]
[Date "2022.05.11"]
[WhiteClock "0:00:13"]
[BlackClock "0:00:37"]

1. d4 {[%clk 0:02:57]}  Nf6 {[%clk 0:02:59]} 2. Bg5 {[%clk 0:02:56]}  e6 {[%clk 0:02:58]} 3. Nd2 {[%clk 0:02:55]}  h6 {[%clk 0:02:57]} 4. Bh4 {[%clk 0:02:55]}  c5 {[%clk 0:02:57]} 5. e3 {[%clk 0:02:49]}  Nc6 {[%clk 0:02:55]} 6. c3 {[%clk 0:02:49]}  Be7 {[%clk 0:02:55]} 7. Bd3 {[%clk 0:02:46]}  O-O {[%clk 0:02:54]} 8. Bxf6 {[%clk 0:02:42]}  Bxf6 {[%clk 0:02:54]} 9. dxc5 {[%clk 0:02:42]}  Qe7 {[%clk 0:02:25]} 10. Ne4 {[%clk 0:02:38]}  Be5 {[%clk 0:02:25]} 11. Nf3 {[%clk 0:02:34]}  Bc7 {[%clk 0:02:20]} 12. Nd6 {[%clk 0:02:30]}  f5 {[%clk 0:02:18]} 13. Bc2 {[%clk 0:02:19]}  b6 {[%clk 0:02:15]} 14. Nxc8 {[%clk 0:02:07]}  Raxc8 {[%clk 0:02:15]} 15. cxb6 {[%clk 0:02:06]}  axb6 {[%clk 0:02:15]} 16. O-O {[%clk 0:02:06]}  d5 {[%clk 0:02:13]} 17. Qe2 {[%clk 0:01:49]}  Rcd8 {[%clk 0:02:06]} 18. g3 {[%clk 0:01:45]}  e5 {[%clk 0:02:00]} 19. Rfd1 {[%clk 0:01:44]}  e4 {[%clk 0:01:46]} 20. Nd4 {[%clk 0:01:40]}  Ne5 {[%clk 0:01:46]} 21. Bb3 {[%clk 0:01:35]}  Kh7 {[%clk 0:01:45]} 22. Qb5 {[%clk 0:01:23]}  Qf7 {[%clk 0:01:30]} 23. Ne2 {[%clk 0:01:09]}  Qh5 {[%clk 0:01:14]} 24. h4 {[%clk 0:01:08]}  Nf3+ {[%clk 0:01:08]} 25. Kg2 {[%clk 0:01:07]}  Qg4 {[%clk 0:00:53]} 26. Rh1 {[%clk 0:00:56]}  f4 {[%clk 0:00:50]} 27. exf4 {[%clk 0:00:54]}  Bxf4 {[%clk 0:00:47]} 28. Nxf4 {[%clk 0:00:50]}  Rxf4 {[%clk 0:00:47]} 29. Bxd5 {[%clk 0:00:35]}  Rdf8 {[%clk 0:00:44]} 30. Raf1 {[%clk 0:00:27]}  Ne1+ {[%clk 0:00:39]} 31. Kg1 {[%clk 0:00:13]}  Rxf2 {[%clk 0:00:38]} 32. Rxf2 {[%clk 0:00:13]}  Qxg3+ {[%clk 0:00:37]} 0-1


[Site "https://www.chess.com"]

[Event "Titled Tuesday Blitz May 10 Early 2022"]
[White "Kozak, Adam"]
[Black "Bellissimo, Joseph F."]
[WhiteFideId "753246"]
[BlackFideId "2609843"]
[WhiteElo "2840"]
[BlackElo "2579"]
[Result "1-0"]
[Round "04"]
[TimeControl "180+1"]
[Date "2022.05.11"]
[WhiteClock "0:01:45"]
[BlackClock "0:00:32"]

1. Nf3 {[%clk 0:02:45]}  Nf6 {[%clk 0:02:58]} 2. c4 {[%clk 0:02:45]}  e6 {[%clk 0:02:55]} 3. g3 {[%clk 0:02:44]}  d5 {[%clk 0:02:56]} 4. Bg2 {[%clk 0:02:43]}  c6 {[%clk 0:02:54]} 5. O-O {[%clk 0:02:42]}  b6 {[%clk 0:02:54]} 6. b3 {[%clk 0:02:40]}  Bb7 {[%clk 0:02:52]} 7. Bb2 {[%clk 0:02:41]}  Nbd7 {[%clk 0:02:51]} 8. e3 {[%clk 0:02:41]}  Bd6 {[%clk 0:02:51]} 9. Nc3 {[%clk 0:02:40]}  O-O {[%clk 0:02:51]} 10. Qc2 {[%clk 0:02:38]}  Rc8 {[%clk 0:02:46]} 11. Nh4 {[%clk 0:02:32]}  Qe7 {[%clk 0:02:43]} 12. f4 {[%clk 0:02:31]}  a6 {[%clk 0:02:39]} 13. Ne2 {[%clk 0:02:26]}  c5 {[%clk 0:02:28]} 14. d3 {[%clk 0:02:22]}  Nb8 {[%clk 0:02:18]} 15. e4 {[%clk 0:02:20]}  Ng4 {[%clk 0:02:07]} 16. exd5 {[%clk 0:02:15]}  exd5 {[%clk 0:02:01]} 17. Nf5 {[%clk 0:02:15]}  Qd7 {[%clk 0:01:55]} 18. Nxg7 {[%clk 0:02:12]}  d4 {[%clk 0:01:52]} 19. Bxb7 {[%clk 0:02:08]}  Qxb7 {[%clk 0:01:52]} 20. Nxd4 {[%clk 0:02:07]}  Ne3 {[%clk 0:01:44]} 21. Qe2 {[%clk 0:02:05]}  cxd4 {[%clk 0:01:44]} 22. Bxd4 {[%clk 0:02:03]}  Nxf1 {[%clk 0:01:42]} 23. Nf5 {[%clk 0:01:59]}  f6 {[%clk 0:01:22]} 24. Qe6+ {[%clk 0:01:57]}  Rf7 {[%clk 0:01:14]} 25. Nh6+ {[%clk 0:01:54]}  Kg7 {[%clk 0:01:11]} 26. Nf5+ {[%clk 0:01:51]}  Kg8 {[%clk 0:01:08]} 27. Nxd6 {[%clk 0:01:51]}  Qd7 {[%clk 0:01:03]} 28. Qxf7+ {[%clk 0:01:45]}  Qxf7 {[%clk 0:01:02]} 29. Nxf7 {[%clk 0:01:46]}  Kxf7 {[%clk 0:01:02]} 30. Rxf1 {[%clk 0:01:42]}  Rd8 {[%clk 0:01:02]} 31. Bxb6 {[%clk 0:01:41]}  Rxd3 {[%clk 0:01:03]} 32. Rf2 {[%clk 0:01:40]}  Nc6 {[%clk 0:01:02]} 33. Re2 {[%clk 0:01:39]}  Nb4 {[%clk 0:00:57]} 34. Bc5 {[%clk 0:01:38]}  Rd1+ {[%clk 0:00:57]} 35. Kg2 {[%clk 0:01:38]}  Nd3 {[%clk 0:00:57]} 36. Be3 {[%clk 0:01:37]}  Ne1+ {[%clk 0:00:55]} 37. Kf2 {[%clk 0:01:37]}  Nd3+ {[%clk 0:00:56]} 38. Kf3 {[%clk 0:01:37]}  Rf1+ {[%clk 0:00:55]} 39. Ke4 {[%clk 0:01:37]}  Nb4 {[%clk 0:00:53]} 40. Bc5 {[%clk 0:01:37]}  Nc6 {[%clk 0:00:47]} 41. Kd5 {[%clk 0:01:36]}  Nd8 {[%clk 0:00:46]} 42. Kd6 {[%clk 0:01:30]}  Ne6 {[%clk 0:00:42]} 43. Rxe6 {[%clk 0:01:28]}  Rd1+ {[%clk 0:00:41]} 44. Bd4 {[%clk 0:01:28]}  Rxd4+ {[%clk 0:00:38]} 45. Kc5 {[%clk 0:01:28]}  Rd2 {[%clk 0:00:39]} 46. Rxa6 {[%clk 0:01:28]}  Rxh2 {[%clk 0:00:39]} 47. b4 {[%clk 0:01:28]}  Rg2 {[%clk 0:00:35]} 48. b5 {[%clk 0:01:28]}  Rxg3 {[%clk 0:00:36]} 49. b6 {[%clk 0:01:28]}  Rg8 {[%clk 0:00:36]} 50. b7 {[%clk 0:01:28]}  Rb8 {[%clk 0:00:36]} 51. Kb6 {[%clk 0:01:28]}  h5 {[%clk 0:00:37]} 52. c5 {[%clk 0:01:28]}  h4 {[%clk 0:00:36]} 53. c6 {[%clk 0:01:29]}  h3 {[%clk 0:00:37]} 54. Ra3 {[%clk 0:01:29]}  Rh8 {[%clk 0:00:33]} 55. Rxh3 {[%clk 0:01:28]}  Rxh3 {[%clk 0:00:32]} 56. b8=Q {[%clk 0:01:28]}  Kg6 {[%clk 0:00:31]} 57. Qb7 {[%clk 0:01:29]}  Kf5 {[%clk 0:00:30]} 58. a4 {[%clk 0:01:29]}  Kxf4 {[%clk 0:00:31]} 59. Ka6 {[%clk 0:01:29]}  f5 {[%clk 0:00:27]} 60. a5 {[%clk 0:01:29]}  Kg3 {[%clk 0:00:25]} 61. c7 {[%clk 0:01:29]}  f4 {[%clk 0:00:26]} 62. c8=Q {[%clk 0:01:29]}  f3 {[%clk 0:00:26]} 63. Qxf3+ {[%clk 0:01:28]}  Kxf3 {[%clk 0:00:25]} 64. Qxh3+ {[%clk 0:01:28]}  Kf2 {[%clk 0:00:26]} 65. Qc8 {[%clk 0:01:29]}  Kg1 {[%clk 0:00:27]} 66. Qb8 {[%clk 0:01:29]}  Kf2 {[%clk 0:00:27]} 67. Ka7 {[%clk 0:01:30]}  Ke2 {[%clk 0:00:28]} 68. Ka8 {[%clk 0:01:31]}  Kd3 {[%clk 0:00:27]} 69. Qa7 {[%clk 0:01:32]}  Kc4 {[%clk 0:00:27]} 70. Qa6+ {[%clk 0:01:33]}  Kb4 {[%clk 0:00:27]} 71. Kb8 {[%clk 0:01:34]}  Ka4 {[%clk 0:00:27]} 72. Kc8 {[%clk 0:01:35]}  Kb4 {[%clk 0:00:26]} 73. Kd8 {[%clk 0:01:36]}  Kc5 {[%clk 0:00:26]} 74. Ke8 {[%clk 0:01:37]}  Kb4 {[%clk 0:00:27]} 75. Kf8 {[%clk 0:01:38]}  Ka4 {[%clk 0:00:28]} 76. Kg7 {[%clk 0:01:38]}  Kb4 {[%clk 0:00:28]} 77. Kh6 {[%clk 0:01:39]}  Ka4 {[%clk 0:00:29]} 78. Qb6 {[%clk 0:01:39]}  Ka3 {[%clk 0:00:29]} 79. a6 {[%clk 0:01:40]}  Ka2 {[%clk 0:00:29]} 80. Kh5 {[%clk 0:01:40]}  Ka1 {[%clk 0:00:30]} 81. Kh4 {[%clk 0:01:41]}  Ka2 {[%clk 0:00:31]} 82. Kh3 {[%clk 0:01:42]}  Ka1 {[%clk 0:00:31]} 83. Kh2 {[%clk 0:01:43]}  Ka2 {[%clk 0:00:32]} 84. Kh1 {[%clk 0:01:44]}  Ka1 {[%clk 0:00:32]} 85. Kg1 {[%clk 0:01:45]} 1-0


[Site "https://www.chess.com"]

[Event "Titled Tuesday Blitz May 10 Early 2022"]
[White "Kozak, Antoni"]
[Black "Morefield, Jason"]
[WhiteFideId "21832030"]
[BlackFideId "30920825"]
[WhiteElo "2322"]
[BlackElo "2171"]
[Result "1-0"]
[Round "04"]
[TimeControl "180+1"]
[Date "2022.05.11"]
[WhiteClock "0:00:31"]
[BlackClock "0:00:09"]

1. Nf3 {[%clk 0:03:00]}  Nf6 {[%clk 0:02:57]} 2. c4 {[%clk 0:03:00]}  b6 {[%clk 0:02:57]} 3. g3 {[%clk 0:02:59]}  Bb7 {[%clk 0:02:57]} 4. Bg2 {[%clk 0:02:59]}  g6 {[%clk 0:02:58]} 5. O-O {[%clk 0:03:00]}  Bg7 {[%clk 0:02:58]} 6. Nc3 {[%clk 0:03:00]}  O-O {[%clk 0:02:59]} 7. Re1 {[%clk 0:02:57]}  c5 {[%clk 0:02:53]} 8. e4 {[%clk 0:02:56]}  d6 {[%clk 0:02:54]} 9. d3 {[%clk 0:02:51]}  Nc6 {[%clk 0:02:50]} 10. Bf4 {[%clk 0:02:35]}  Ng4 {[%clk 0:02:47]} 11. Qd2 {[%clk 0:02:29]}  f5 {[%clk 0:02:36]} 12. exf5 {[%clk 0:02:21]}  Rxf5 {[%clk 0:02:37]} 13. h3 {[%clk 0:02:01]}  Nge5 {[%clk 0:02:32]} 14. Nxe5 {[%clk 0:01:59]}  dxe5 {[%clk 0:02:23]} 15. Be3 {[%clk 0:01:57]}  Qd7 {[%clk 0:02:19]} 16. Ne4 {[%clk 0:01:50]}  Nd4 {[%clk 0:01:46]} 17. Bxd4 {[%clk 0:01:40]}  exd4 {[%clk 0:01:47]} 18. b4 {[%clk 0:01:32]}  Raf8 {[%clk 0:01:43]} 19. Re2 {[%clk 0:01:27]}  h5 {[%clk 0:01:12]} 20. Rb1 {[%clk 0:01:17]}  Qc7 {[%clk 0:00:58]} 21. bxc5 {[%clk 0:01:11]}  bxc5 {[%clk 0:00:59]} 22. Rxb7 {[%clk 0:01:08]}  Qd8 {[%clk 0:00:40]} 23. Rxa7 {[%clk 0:01:05]}  h4 {[%clk 0:00:39]} 24. g4 {[%clk 0:01:01]}  Rf4 {[%clk 0:00:36]} 25. Rb7 {[%clk 0:00:52]}  Be5 {[%clk 0:00:24]} 26. Nxc5 {[%clk 0:00:47]}  Qd6 {[%clk 0:00:15]} 27. Nd7 {[%clk 0:00:38]}  Bg7 {[%clk 0:00:11]} 28. Nxf8 {[%clk 0:00:38]}  Rxf8 {[%clk 0:00:11]} 29. Qg5 {[%clk 0:00:34]}  e5 {[%clk 0:00:09]} 30. Bd5+ {[%clk 0:00:31]} 1-0


[Site "https://www.chess.com"]

[Event "Titled Tuesday Blitz May 10 Early 2022"]
[White "Krstulovic, Alex"]
[Black "Bodnar, Nikolay"]
[WhiteFideId "760056"]
[BlackFideId "14106469"]
[WhiteElo "2193"]
[BlackElo "2296"]
[Result "0-1"]
[Round "04"]
[TimeControl "180+1"]
[Date "2022.05.11"]
[WhiteClock "0:00:23"]
[BlackClock "0:01:07"]

1. e4 {[%clk 0:03:00]}  e6 {[%clk 0:02:59]} 2. d4 {[%clk 0:03:00]}  d5 {[%clk 0:03:00]} 3. e5 {[%clk 0:02:59]}  c5 {[%clk 0:02:59]} 4. c3 {[%clk 0:02:59]}  Qb6 {[%clk 0:03:00]} 5. Nf3 {[%clk 0:02:59]}  Nc6 {[%clk 0:03:00]} 6. Be2 {[%clk 0:02:58]}  cxd4 {[%clk 0:02:59]} 7. cxd4 {[%clk 0:02:59]}  Nh6 {[%clk 0:02:59]} 8. Bxh6 {[%clk 0:02:58]}  Qxb2 {[%clk 0:02:58]} 9. Nbd2 {[%clk 0:02:58]}  gxh6 {[%clk 0:02:54]} 10. O-O {[%clk 0:02:57]}  Qb6 {[%clk 0:02:51]} 11. Rb1 {[%clk 0:02:50]}  Qd8 {[%clk 0:02:50]} 12. Re1 {[%clk 0:02:48]}  Bg7 {[%clk 0:02:48]} 13. Nf1 {[%clk 0:02:48]}  f6 {[%clk 0:02:24]} 14. Ng3 {[%clk 0:02:37]}  O-O {[%clk 0:02:15]} 15. Bd3 {[%clk 0:02:32]}  f5 {[%clk 0:02:13]} 16. Nh5 {[%clk 0:02:24]}  Rf7 {[%clk 0:02:13]} 17. Qd2 {[%clk 0:02:22]}  Ne7 {[%clk 0:02:07]} 18. Rec1 {[%clk 0:01:26]}  Ng6 {[%clk 0:02:04]} 19. Rc2 {[%clk 0:01:10]}  b6 {[%clk 0:02:03]} 20. Rbc1 {[%clk 0:01:07]}  Bd7 {[%clk 0:02:03]} 21. Rc7 {[%clk 0:01:06]}  Be8 {[%clk 0:01:57]} 22. Ba6 {[%clk 0:00:48]}  Rxc7 {[%clk 0:01:54]} 23. Rb1 {[%clk 0:00:29]}  Rb8 {[%clk 0:01:44]} 24. Bd3 {[%clk 0:00:28]}  b5 {[%clk 0:01:41]} 25. h3 {[%clk 0:00:27]}  b4 {[%clk 0:01:32]} 26. g4 {[%clk 0:00:27]}  fxg4 {[%clk 0:01:31]} 27. hxg4 {[%clk 0:00:28]}  Rf7 {[%clk 0:01:28]} 28. Nh2 {[%clk 0:00:27]}  a5 {[%clk 0:01:22]} 29. Nxg7 {[%clk 0:00:27]}  Kxg7 {[%clk 0:01:22]} 30. Rf1 {[%clk 0:00:27]}  Qh4 {[%clk 0:01:14]} 31. f4 {[%clk 0:00:26]}  Qg3+ {[%clk 0:01:14]} 32. Kh1 {[%clk 0:00:25]}  Rxf4 {[%clk 0:01:10]} 33. Rg1 {[%clk 0:00:25]}  Qh3 {[%clk 0:01:08]} 34. Bxg6 {[%clk 0:00:24]}  Bxg6 {[%clk 0:01:07]} 35. Qxf4 {[%clk 0:00:23]}  Be4+ {[%clk 0:01:07]} 0-1


[Site "https://www.chess.com"]

[Event "Titled Tuesday Blitz May 10 Early 2022"]
[White "Lucas, Arthur"]
[Black "Ceres, Dragos"]
[WhiteFideId "26093073"]
[BlackFideId "13905864"]
[WhiteElo "2129"]
[BlackElo "2150"]
[Result "0-1"]
[Round "04"]
[TimeControl "180+1"]
[Date "2022.05.11"]
[WhiteClock "0:00:02"]
[BlackClock "0:00:21"]

1. d4 {[%clk 0:02:58]}  Nf6 {[%clk 0:02:58]} 2. c4 {[%clk 0:02:56]}  e6 {[%clk 0:02:52]} 3. g3 {[%clk 0:02:56]}  c5 {[%clk 0:02:51]} 4. d5 {[%clk 0:02:56]}  exd5 {[%clk 0:02:52]} 5. cxd5 {[%clk 0:02:57]}  d6 {[%clk 0:02:52]} 6. Bg2 {[%clk 0:02:57]}  g6 {[%clk 0:02:53]} 7. Nf3 {[%clk 0:02:58]}  Bg7 {[%clk 0:02:54]} 8. O-O {[%clk 0:02:59]}  O-O {[%clk 0:02:54]} 9. Nc3 {[%clk 0:02:59]}  Re8 {[%clk 0:02:54]} 10. Nd2 {[%clk 0:02:59]}  a6 {[%clk 0:02:54]} 11. a4 {[%clk 0:02:59]}  Nbd7 {[%clk 0:02:54]} 12. Nc4 {[%clk 0:02:53]}  Ne5 {[%clk 0:02:53]} 13. Nxe5 {[%clk 0:02:52]}  Rxe5 {[%clk 0:02:54]} 14. Bf4 {[%clk 0:02:51]}  Re8 {[%clk 0:02:54]} 15. Re1 {[%clk 0:02:49]}  Ng4 {[%clk 0:02:50]} 16. Qc2 {[%clk 0:02:39]}  Ne5 {[%clk 0:02:38]} 17. a5 {[%clk 0:02:23]}  Bd7 {[%clk 0:02:36]} 18. Ra2 {[%clk 0:02:07]}  Bb5 {[%clk 0:02:34]} 19. Nxb5 {[%clk 0:01:57]}  axb5 {[%clk 0:02:35]} 20. b4 {[%clk 0:01:51]}  c4 {[%clk 0:02:20]} 21. Bd2 {[%clk 0:01:44]}  Ra6 {[%clk 0:02:09]} 22. Bc3 {[%clk 0:01:43]}  b6 {[%clk 0:02:04]} 23. Rea1 {[%clk 0:01:38]}  bxa5 {[%clk 0:02:03]} 24. Rxa5 {[%clk 0:01:38]}  Rxa5 {[%clk 0:01:59]} 25. Rxa5 {[%clk 0:01:38]}  Qb6 {[%clk 0:01:56]} 26. h3 {[%clk 0:01:35]}  h5 {[%clk 0:01:52]} 27. e3 {[%clk 0:01:22]}  Nd3 {[%clk 0:01:48]} 28. Bxg7 {[%clk 0:01:21]}  Kxg7 {[%clk 0:01:48]} 29. Qc3+ {[%clk 0:01:19]}  f6 {[%clk 0:01:39]} 30. Qd2 {[%clk 0:00:53]}  h4 {[%clk 0:01:36]} 31. g4 {[%clk 0:00:50]}  Re7 {[%clk 0:01:32]} 32. Bf1 {[%clk 0:00:48]}  Ne5 {[%clk 0:01:30]} 33. Kg2 {[%clk 0:00:46]}  Ra7 {[%clk 0:01:28]} 34. f4 {[%clk 0:00:17]}  Nd7 {[%clk 0:01:20]} 35. Rxa7 {[%clk 0:00:03]}  Qxa7 {[%clk 0:01:21]} 36. Kf3 {[%clk 0:00:02]}  Kf7 {[%clk 0:01:17]} 37. Be2 {[%clk 0:00:02]}  Qc7 {[%clk 0:01:10]} 38. Bd1 {[%clk 0:00:02]}  c3 {[%clk 0:01:06]} 39. Qd3 {[%clk 0:00:03]}  Qb7 {[%clk 0:00:50]} 40. Bc2 {[%clk 0:00:03]}  Nf8 {[%clk 0:00:44]} 41. e4 {[%clk 0:00:02]}  g5 {[%clk 0:00:39]} 42. Qxc3 {[%clk 0:00:02]}  gxf4 {[%clk 0:00:37]} 43. Kxf4 {[%clk 0:00:03]}  Ng6+ {[%clk 0:00:37]} 44. Ke3 {[%clk 0:00:02]}  Ne5 {[%clk 0:00:37]} 45. Bd1 {[%clk 0:00:02]}  Qb6+ {[%clk 0:00:36]} 46. Qd4 {[%clk 0:00:02]}  Nc4+ {[%clk 0:00:35]} 47. Kd3 {[%clk 0:00:03]}  Qa6 {[%clk 0:00:34]} 48. Qc3 {[%clk 0:00:03]}  Ne5+ {[%clk 0:00:28]} 49. Ke3 {[%clk 0:00:03]}  Qa7+ {[%clk 0:00:25]} 50. Qd4 {[%clk 0:00:03]}  Nc4+ {[%clk 0:00:19]} 51. Kd3 {[%clk 0:00:03]}  Qa3+ {[%clk 0:00:19]} 52. Qc3 {[%clk 0:00:04]}  Nb2+ {[%clk 0:00:19]} 53. Kc2 {[%clk 0:00:02]}  Qxc3+ {[%clk 0:00:20]} 54. Kxc3 {[%clk 0:00:03]}  Nxd1+ {[%clk 0:00:21]} 55. Kd4 {[%clk 0:00:01]}  Nf2 {[%clk 0:00:21]} 56. g5 {[%clk 0:00:01]}  Nxh3 {[%clk 0:00:19]} 57. e5 {[%clk 0:00:02]}  fxe5+ {[%clk 0:00:19]} 58. Ke4 {[%clk 0:00:02]}  Nxg5+ {[%clk 0:00:20]} 59. Kf5 {[%clk 0:00:01]}  h3 {[%clk 0:00:21]} 60. Kxg5 {[%clk 0:00:02]}  h2 {[%clk 0:00:21]} 0-1


[Site "https://www.chess.com"]

[Event "Titled Tuesday Blitz May 10 Early 2022"]
[White "Martic, Ivan"]
[Black "Gheorghiu, Calin"]
[WhiteFideId "929301"]
[BlackFideId "1200305"]
[WhiteElo "2317"]
[BlackElo "2168"]
[Result "1-0"]
[Round "04"]
[TimeControl "180+1"]
[Date "2022.05.11"]
[WhiteClock "0:01:14"]
[BlackClock "0:01:40"]

1. c4 {[%clk 0:03:00]}  e6 {[%clk 0:02:54]} 2. Nc3 {[%clk 0:03:00]}  d5 {[%clk 0:02:50]} 3. d4 {[%clk 0:03:00]}  Nf6 {[%clk 0:02:49]} 4. cxd5 {[%clk 0:03:01]}  Nxd5 {[%clk 0:02:47]} 5. e4 {[%clk 0:03:00]}  Nxc3 {[%clk 0:02:48]} 6. bxc3 {[%clk 0:03:00]}  c5 {[%clk 0:02:48]} 7. Nf3 {[%clk 0:03:00]}  cxd4 {[%clk 0:02:49]} 8. cxd4 {[%clk 0:03:00]}  Bb4+ {[%clk 0:02:50]} 9. Bd2 {[%clk 0:03:01]}  Bxd2+ {[%clk 0:02:50]} 10. Qxd2 {[%clk 0:03:02]}  O-O {[%clk 0:02:51]} 11. Bc4 {[%clk 0:03:02]}  Nc6 {[%clk 0:02:48]} 12. O-O {[%clk 0:03:01]}  b6 {[%clk 0:02:48]} 13. Rfe1 {[%clk 0:02:53]}  Bb7 {[%clk 0:02:48]} 14. Rad1 {[%clk 0:02:53]}  Rc8 {[%clk 0:02:48]} 15. d5 {[%clk 0:02:34]}  Na5 {[%clk 0:02:43]} 16. Bd3 {[%clk 0:02:31]}  exd5 {[%clk 0:02:40]} 17. e5 {[%clk 0:02:31]}  h6 {[%clk 0:02:40]} 18. Qf4 {[%clk 0:02:19]}  Nc4 {[%clk 0:02:37]} 19. Bf5 {[%clk 0:01:56]}  Rc5 {[%clk 0:02:23]} 20. Nd4 {[%clk 0:01:53]}  Ra5 {[%clk 0:02:11]} 21. e6 {[%clk 0:01:43]}  Qf6 {[%clk 0:01:56]} 22. exf7+ {[%clk 0:01:38]}  Kh8 {[%clk 0:01:49]} 23. Re6 {[%clk 0:01:34]}  Qxf7 {[%clk 0:01:47]} 24. Rxh6+ {[%clk 0:01:30]}  gxh6 {[%clk 0:01:43]} 25. Qxh6+ {[%clk 0:01:31]}  Kg8 {[%clk 0:01:41]} 26. Be6 {[%clk 0:01:31]}  Rxa2 {[%clk 0:01:40]} 27. Nf5 {[%clk 0:01:14]} 1-0


[Site "https://www.chess.com"]